bitfinex-derivatives/quotes_ETHF0:USTF0_20210705
["timestamp","ask_amount","ask_price","bid_price","bid_amount"]
[1625486270058,14.514,2190.8,2190.7,2.20527]
[1625486270456,2.20527,2190.9,2190.7,2.20527]
[1625486271260,2.20527,2190.9,2190.7,7e-05]
[1625486271363,2.20527,2190.9,2190.7,3.26357]
[1625486272061,15.1926,2192.2,2190.7,3.26357]
[1625486272161,2.20527,2191.3,2190.7,3.26357]
[1625486272366,2.20527,2191.3,2190.8,16.476181]
[1625486274306,2.20527,2191.3,2185.4,1.30648666]
[1625486274523,5.0,2191.2,2186.9,2.565]
[1625486274727,2.20527,2189.4,2189.3,2.20527]
[1625486276899,2.20527,2189.4,2186.7,15.9448]
[1625486279064,2.20527,2189.4,2186.7,14.9448]
[1625486279134,2.20527,2189.4,2186.8,5.0]
[1625486279711,4.41054,2189.4,2189.3,2.20527]
[1625486280335,2.20527,2189.4,2189.3,2.20527]
[1625486280510,28.8319,2191.0,2189.3,2.20527]
[1625486280605,28.8319,2191.0,2189.3,18.815291]
[1625486280773,28.8319,2191.0,2189.3,2.20527]
[1625486280812,2.20527,2190.1,2190.0,2.20527]
[1625486282678,2.20527,2190.1,2190.0,7e-05]
[1625486282721,2.20527,2190.1,2189.3,2.20527]
[1625486282783,2.20527,2190.1,2188.1,3.5557]
[1625486282982,2.20527,2190.1,2187.8,5.0]
[1625486283038,2.20527,2190.1,2188.2,16.642935]
[1625486283087,2.20527,2190.1,2188.2,19.799535]
[1625486283166,2.20527,2190.1,2188.2,3.1566]
[1625486283258,2.20527,2189.5,2189.4,5.48687]
[1625486283394,2.20527,2189.5,2189.4,22.044953]
[1625486283574,2.20527,2189.5,2189.4,5.48687]
[1625486283666,2.20527,2189.5,2189.4,3.2816]
[1625486283736,2.20527,2189.5,2189.4,19.720316]
[1625486285563,2.20527,2189.5,2189.4,3.2816]
[1625486285626,2.20527,2189.5,2188.3,0.9039]
[1625486285853,2.20527,2189.5,2189.3,2.20527]
[1625486286228,2.20527,2189.5,2189.4,16.484906]
[1625486288859,2.20527,2189.5,2188.5,3.0154]
[1625486289063,2.20527,2189.0,2188.9,2.20527]
[1625486290043,28.8319,2191.0,2188.9,2.20527]
[1625486290098,28.8319,2191.0,2189.2,16.691064]
[1625486291937,2.20527,2189.9,2189.6,2.20527]
[1625486292061,27.4629,2191.0,2189.6,4.79167]
[1625486292154,13.9891,2191.0,2189.6,4.79167]
[1625486292263,12.5451,2191.0,2189.6,4.79167]
[1625486292481,12.5451,2191.0,2189.7,16.5997]
[1625486293324,12.5451,2191.0,2189.8,5.0]
[1625486293378,1.1,2194.1,2189.8,5.0]
[1625486293496,11.745,2194.8,2189.8,6.0]
[1625486293721,11.745,2194.8,2189.9,16.638857]
[1625486294917,11.7,2194.8,2190.0,1.0]
[1625486294982,2.20527,2191.5,2191.4,2.20527]
[1625486295028,2.20527,2191.5,2191.4,5.74027]
[1625486295384,2.20527,2191.5,2191.4,22.321631]
[1625486296223,0.44857,2191.5,2191.4,22.321631]
[1625486296242,45.2739,2193.3,2191.4,22.321631]
[1625486296274,2.20527,2192.2,2192.1,2.20527]
[1625486296283,2.20527,2192.2,2192.1,4.84147]
[1625486296315,2.20527,2192.2,2192.1,2.6362]
[1625486296349,2.20527,2192.2,2189.7,1.0]
[1625486296364,4.73487,2192.2,2188.3,2.63897241]
[1625486296376,4.73487,2192.2,2189.6,7.5864]
[1625486296509,4.73487,2192.2,2189.7,16.636803]
[1625486296515,4.73487,2192.2,2189.8,5.0]
[1625486296521,2.20527,2192.2,2189.8,5.0]
[1625486296573,2.20527,2192.2,2189.9,16.702433]
[1625486296577,2.20527,2192.2,2192.1,2.20527]
[1625486296581,2.20527,2192.2,2192.0,2.3293]
[1625486298182,2.20527,2192.2,2190.1,1.0]
[1625486298281,2.20527,2192.2,2189.7,5.9046]
[1625486298282,2.20527,2192.2,2191.9,2.20527]
[1625486299577,2.20527,2192.2,2191.6,2.20527]
[1625486300229,2.20527,2191.7,2191.6,2.20527]
[1625486301128,2.20527,2192.2,2191.6,18.789639]
[1625486302280,2.20527,2192.2,2192.0,2.20527]
[1625486303285,2.20527,2192.2,2192.1,16.551438]
[1625486303382,2.20527,2192.2,2192.1,19.095438]
[1625486304293,4.41054,2192.2,2192.1,19.095438]
[1625486304492,4.41054,2192.2,2191.6,2.20527]
[1625486304591,7.07224,2192.2,2190.2,1.0]
[1625486304691,7.07224,2192.2,2186.6,2.6489353]
[1625486304793,7.07224,2192.2,2188.9,16.95885613]
[1625486304906,7.07224,2192.2,2188.9,15.85885613]
[1625486305105,7.07224,2192.2,2189.8,0.16959256]
[1625486306007,7.07224,2192.2,2189.8,3.07419256]
[1625486306107,4.41054,2192.2,2189.8,3.07419256]
[1625486306311,2.20527,2191.3,2191.2,2.20527]
[1625486308480,2.20527,2191.3,2190.9,2.20527]
[1625486308596,2.20527,2191.3,2189.3,1.0]
[1625486308692,2.20527,2191.3,2188.9,15.85900281]
[1625486308870,2.20527,2191.3,2189.0,5.16965766]
[1625486309168,2.20527,2191.3,2189.1,0.16966857]
[1625486309369,2.20527,2191.3,2189.0,0.16967065]
[1625486309869,2.20527,2191.3,2189.1,16.513641]
[1625486309971,2.20527,2191.3,2189.1,19.440941]
[1625486310068,2.20527,2191.3,2189.2,0.16970806]
[1625486310322,2.20527,2190.3,2190.2,2.20527]
[1625486310920,2.20527,2190.3,2189.3,16.49962]
[1625486311218,2.20527,2190.3,2188.3,1.32764463]
[1625486311319,2.20527,2190.3,2188.1,1.32776279]
[1625486311418,2.20527,2190.3,2188.2,0.16974499]
[1625486311518,2.20527,2190.3,2189.4,16.490051]
[1625486311819,2.20527,2190.3,2188.4,16.51712]
[1625486311919,2.20527,2190.3,2188.5,0.16977734]
[1625486312336,2.20527,2189.3,2189.1,2.20527]
[1625486312719,2.20527,2189.3,2189.2,16.578848]
[1625486312921,1.123089,2189.3,2189.2,16.578848]
[1625486313019,1.123089,2189.3,2189.2,19.354948]
[1625486313622,51.0835,2190.9,2189.2,19.354948]
[1625486313723,14.1772,2192.1,2189.2,19.354948]
[1625486314223,14.1772,2192.1,2189.3,0.16975418]
[1625486314324,2.20527,2190.5,2190.4,2.20527]
[1625486314425,2.20527,2190.5,2190.4,4.77347]
[1625486314623,14.1772,2192.1,2190.5,16.501848]
[1625486314925,14.1772,2192.1,2190.4,21.331614]
[1625486315023,14.1772,2192.1,2190.4,4.77347]
[1625486315334,14.1772,2192.1,2190.5,16.672873]
[1625486316028,14.1772,2192.1,2190.5,19.408973]
[1625486316328,2.20527,2191.5,2191.4,2.20527]
[1625486316428,1.0,2193.2,2191.4,2.20527]
[1625486316528,13.8085,2194.3,2191.4,5.49417]
[1625486316732,13.8085,2194.3,2191.5,16.563736]
[1625486317028,5.0,2194.2,2191.4,6.49417]
[1625486317132,13.8085,2194.3,2191.4,5.49417]
[1625486317328,13.8085,2194.3,2191.5,16.576977]
[1625486318081,5.0,2194.2,2191.5,16.576977]
[1625486318382,2.20527,2192.5,2192.4,2.20527]
[1625486320387,4.41054,2192.5,2192.4,2.20527]
[1625486323841,4.41054,2192.5,2192.4,18.784846]
[1625486325862,4.41054,2192.5,2192.4,16.579576]
[1625486328616,4.41054,2192.5,2192.3,2.20527]
[1625486330072,4.41054,2192.5,2192.1,2.20527]
[1625486330421,2.20527,2192.2,2192.1,2.20527]
[1625486330723,2.20527,2192.5,2192.2,16.464285]
[1625486331022,2.20527,2192.5,2192.1,2.20527]
[1625486331324,2.20527,2192.5,2192.2,16.551258]
[1625486331823,2.20527,2192.5,2192.2,18.830258]
[1625486332235,1.60527,2192.5,2192.2,18.830258]
[1625486332324,1.0,2193.8,2192.2,18.830258]
[1625486332426,13.8085,2194.3,2193.3,2.20527]
[1625486332427,2.20527,2193.5,2193.3,2.20527]
[1625486332524,2.20527,2193.5,2193.3,5.51107]
[1625486332726,2.20527,2193.5,2193.4,16.516972]
[1625486333331,13.8085,2194.3,2193.4,16.516972]
[1625486333431,14.6097,2194.8,2193.4,16.516972]
[1625486333530,14.6097,2194.8,2193.4,17.429972]
[1625486334432,2.20527,2194.6,2194.5,5.15427]
[1625486335838,2.20527,2194.6,2193.4,0.913]
[1625486336139,2.20527,2194.6,2192.7,1.0]
[1625486336241,2.20527,2194.6,2192.5,2.25806762]
[1625486336439,2.20527,2193.9,2193.8,2.20527]
[1625486337390,1.0,2195.6,2193.8,18.79485]
[1625486337491,1.21050367,2196.3,2193.8,21.75475]
[1625486337589,2.60220513,2196.4,2193.8,21.75475]
[1625486337590,1.9075,2196.4,2193.8,21.75475]
[1625486337990,1.0,2196.4,2193.8,22.67185]
[1625486338090,1.0,2196.4,2193.8,21.75475]
[1625486338292,73.0828,2196.1,2193.8,21.75475]
[1625486338490,2.20527,2194.7,2194.6,2.20527]
[1625486338599,2.20527,2194.7,2194.6,5.16107]
[1625486340545,2.20527,2194.7,2194.6,2.9558]
[1625486341664,2.20527,2194.7,2194.6,19.464811]
[1625486342064,2.20527,2194.7,2194.6,2.9558]
[1625486342164,2.20527,2194.7,2194.4,2.20527]
[1625486342464,2.20527,2194.5,2194.4,2.20527]
[1625486343719,2.20527,2194.5,2194.2,2.20527]
[1625486343842,5.36847,2194.5,2194.2,2.20527]
[1625486344473,2.20527,2194.3,2194.2,2.20527]
[1625486345730,2.20527,2194.3,2192.6,1.0]
[1625486345820,2.18934,2194.5,2191.9,1.0]
[1625486345944,2.8601,2194.3,2191.4,3.46414042]
[1625486346043,2.8601,2194.3,2191.8,1.3323617]
[1625486346154,2.8601,2194.3,2191.3,1.33207503]
[1625486346155,7.8601,2194.3,2191.3,1.33207503]
[1625486346220,1.0,2194.2,2191.3,1.33207503]
[1625486346423,6.0,2194.2,2191.9,16.587657]
[1625486346524,2.20527,2193.2,2193.0,2.20527]
[1625486346621,5.67157,2193.2,2192.8,2.20527]
[1625486346724,5.67157,2193.2,2191.4,16.533258]
[1625486347324,5.67157,2193.2,2191.2,16.462891]
[1625486347623,5.67157,2193.2,2191.5,16.533743]
[1625486347950,5.67157,2193.2,2190.8,1.0]
[1625486348051,5.67157,2193.2,2190.5,16.676681]
[1625486348604,2.20527,2191.2,2190.4,16.598638]
[1625486348705,5.49877,2191.2,2190.4,16.598638]
[1625486348919,5.49877,2191.2,2190.3,16.545564]
[1625486349103,5.49877,2191.2,2189.5,1.33303412]
[1625486349209,5.49877,2191.2,2189.9,16.69619]
[1625486349406,5.49877,2191.2,2190.4,16.451715]
[1625486349704,5.49877,2191.2,2189.6,16.653929]
[1625486349805,5.49877,2191.2,2190.0,16.622659]
[1625486350114,5.49877,2191.2,2189.3,1.33322428]
[1625486350317,5.49877,2191.2,2189.4,16.73160683]
[1625486350416,5.49877,2191.2,2190.1,16.691151]
[1625486350518,2.20527,2190.6,2190.4,2.20527]
[1625486350618,3.2935,2191.2,2190.4,2.20527]
[1625486350817,3.2935,2191.2,2190.5,16.576446]
[1625486351930,3.2935,2191.2,2190.3,16.440054]
[1625486352229,3.2935,2191.2,2190.6,16.629041]
[1625486352481,3.2935,2191.2,2190.5,0.9151]
[1625486352584,2.20527,2191.1,2191.0,2.20527]
[1625486352680,5.0,2193.1,2191.0,2.20527]
[1625486352781,5.0,2193.1,2191.1,16.698055]
[1625486353081,5.0,2193.1,2191.0,2.20527]
[1625486353384,5.0,2193.1,2191.1,16.491675]
[1625486353584,5.0,2193.0,2191.1,16.491675]
[1625486353988,0.9122,2193.1,2191.1,16.491675]
[1625486354089,5.0,2193.2,2191.1,16.491675]
[1625486354588,2.20527,2191.7,2191.6,2.20527]
[1625486354938,2.20527,2191.7,2191.0,2.20527]
[1625486355594,2.20527,2191.7,2191.1,16.499127]
[1625486356541,2.20527,2191.7,2191.3,2.20527]
[1625486356743,5.759,2193.1,2191.3,2.20527]
[1625486356843,4.759,2193.1,2191.4,16.519281]
[1625486358595,2.20527,2192.4,2192.0,2.20527]
[1625486358895,2.20527,2192.4,2192.1,16.519376]
[1625486360449,0.76334,2192.6,2192.1,16.519376]
[1625486360549,2.20527,2193.7,2192.5,4.41054]
[1625486360949,2.20527,2193.7,2192.6,16.609168]
[1625486361050,2.20527,2193.7,2192.6,18.973868]
[1625486361600,1.0,2194.9,2192.6,18.973868]
[1625486361705,4.759,2195.0,2192.6,18.973868]
[1625486361953,5.759,2195.0,2192.6,18.973868]
[1625486362552,5.759,2195.0,2194.0,2.20527]
[1625486362664,2.20527,2194.2,2194.0,2.20527]
[1625486364076,2.20527,2194.2,2192.6,1.0]
[1625486364171,5.14847,2194.2,2192.5,0.9041]
[1625486364277,5.14847,2194.2,2191.8,0.903]
[1625486364572,2.20527,2193.7,2193.6,2.20527]
[1625486365273,2.4864,2194.5,2193.6,2.20527]
[1625486365724,2.4864,2194.5,2193.4,2.20527]
[1625486366377,2.9737,2195.1,2193.4,2.20527]
[1625486366475,5.0,2195.6,2193.4,2.20527]
[1625486366676,2.20527,2193.5,2193.4,4.41054]
[1625486366977,2.20527,2193.5,2193.4,20.944029]
[1625486367282,1.0,2195.3,2193.4,20.944029]
[1625486367379,2.487,2195.4,2193.4,20.944029]
[1625486368030,15.6808,2196.0,2193.4,23.713029]
[1625486368130,14.6808,2196.0,2193.4,23.713029]
[1625486368331,5.0,2195.9,2193.4,23.713029]
[1625486368433,14.6808,2196.0,2193.4,23.713029]
[1625486368632,2.20527,2194.4,2194.3,2.20527]
[1625486369033,2.20527,2194.4,2192.5,0.905]
[1625486369133,2.20527,2194.4,2191.8,0.903]
[1625486369233,2.20527,2194.4,2191.7,1.33353138]
[1625486369636,2.20527,2194.4,2191.3,5.0]
[1625486369733,2.20527,2194.4,2191.8,16.545752]
[1625486369833,2.20527,2194.4,2191.8,19.228352]
[1625486370034,2.20527,2194.4,2191.8,2.6826]
[1625486370133,2.20527,2194.4,2191.8,7.6826]
[1625486370335,2.20527,2194.4,2191.9,16.430172]
[1625486370634,2.20527,2193.8,2193.7,2.20527]
[1625486371784,1.0,2195.6,2193.7,2.20527]
[1625486371889,14.6808,2196.0,2193.7,2.20527]
[1625486372090,14.6808,2196.0,2193.7,18.784536]
[1625486372689,4.41054,2193.8,2193.7,18.784536]
[1625486372892,2.20527,2193.8,2193.7,18.784536]
[1625486373441,1.0,2195.8,2193.7,18.784536]
[1625486373542,5.0,2195.9,2193.7,18.784536]
[1625486374694,2.20527,2194.2,2194.1,2.20527]
[1625486376699,4.41054,2194.2,2194.1,2.20527]
[1625486376902,2.20527,2194.2,2194.1,2.20527]
[1625486377402,2.20527,2194.2,2194.1,18.812552]
[1625486378515,1.0,2195.8,2194.1,18.812552]
[1625486378614,14.6808,2196.0,2194.1,20.961352]
[1625486378724,2.20527,2194.7,2194.6,5.65277]
[1625486379064,14.6808,2196.0,2194.6,5.65277]
[1625486379181,53.3491,2196.1,2194.6,5.65277]
[1625486380638,2.20527,2194.7,2194.6,5.65277]
[1625486381889,2.20527,2194.7,2194.6,2.20527]
[1625486381988,2.20527,2194.7,2194.1,2.20527]
[1625486382692,4.41054,2194.2,2194.1,2.20527]
[1625486384398,3.1145,2194.6,2194.1,2.20527]
[1625486384502,2.7662,2195.2,2194.1,2.20527]
[1625486384603,2.2247,2195.7,2194.1,2.20527]
[1625486384701,2.20527,2194.5,2194.1,2.20527]
[1625486384799,2.20527,2194.5,2194.2,16.468575]
[1625486385550,2.2247,2195.7,2194.2,16.468575]
[1625486385650,5.0,2196.2,2194.2,16.468575]
[1625486386755,2.20527,2194.3,2194.2,16.468575]
[1625486387175,2.20527,2194.3,2192.6,1.0]
[1625486387307,2.20527,2194.3,2192.1,2.67097689]
[1625486387758,2.20527,2194.3,2191.9,1.33555923]
[1625486387959,2.20527,2194.3,2192.4,16.611893]
[1625486388161,2.20527,2194.3,2192.3,16.565866]
[1625486388361,2.20527,2194.3,2192.1,46.2273]
[1625486388461,2.20527,2194.3,2192.5,16.606992]
[1625486388561,2.20527,2194.3,2192.5,17.524692]
[1625486388661,2.20527,2194.3,2192.5,20.696392]
[1625486388761,51.0711,2195.0,2192.5,20.696392]
[1625486388762,2.20527,2193.8,2193.7,2.20527]
[1625486388860,50.0711,2195.0,2193.7,2.20527]
[1625486389061,50.0711,2195.0,2193.8,16.561932]
[1625486389313,50.0711,2195.0,2193.7,18.876482]
[1625486389413,50.0711,2195.0,2193.7,2.20527]
[1625486389614,50.0711,2195.0,2193.8,16.494909]
[1625486390211,3.2535,2195.1,2193.8,16.494909]
[1625486390717,2.20527,2194.2,2194.1,2.20527]
[1625486390815,2.20527,2194.2,2193.7,2.20527]
[1625486391130,2.20527,2194.2,2193.7,3.11167]
[1625486391214,2.20527,2194.2,2193.7,2.20527]
[1625486392417,2.20527,2194.2,2192.5,0.9177]
[1625486392719,2.20527,2193.4,2193.3,2.20527]
[1625486392819,2.20527,2193.4,2193.1,2.20527]
[1625486392925,4.92207,2193.4,2193.1,2.20527]
[1625486393033,4.92207,2193.4,2192.6,16.546745]
[1625486393320,4.92207,2193.4,2192.1,16.536481]
[1625486393454,4.92207,2193.4,2191.4,1.33573202]
[1625486393647,4.92207,2193.4,2191.1,0.9214]
[1625486393648,5.0,2193.3,2191.1,0.9214]
[1625486393748,5.0,2193.3,2190.7,1.33603058]
[1625486393835,4.92207,2193.4,2190.7,1.33603058]
[1625486394037,4.92207,2193.4,2190.5,2.25686058]
[1625486394134,4.92207,2193.4,2190.8,16.572334]
[1625486394438,4.92207,2193.4,2190.7,16.506448]
[1625486394636,4.92207,2193.4,2190.6,1.3362488]
[1625486394743,2.20527,2192.7,2192.6,2.20527]
[1625486394837,2.20527,2192.7,2192.0,0.9108]
[1625486394937,2.20527,2192.7,2191.3,3.1168]
[1625486395539,2.20527,2192.7,2191.4,16.533136]
[1625486396040,2.20527,2192.7,2191.2,16.475338]
[1625486396139,2.20527,2192.7,2191.4,3.0512]
[1625486396239,2.20527,2192.7,2191.5,16.494682]
[1625486396564,2.20527,2192.7,2191.4,3.0512]
[1625486396647,4.35717,2192.7,2191.1,0.9227]
[1625486396749,4.35717,2192.7,2192.3,2.20527]
[1625486396946,4.35717,2192.7,2191.5,16.653183]
[1625486397153,4.35717,2192.7,2191.2,16.575517]
[1625486397245,4.35717,2192.7,2190.9,16.429458]
[1625486397344,4.35717,2192.7,2190.7,16.481737]
[1625486397441,4.35717,2192.7,2190.5,2.25705274]
[1625486397645,4.35717,2192.7,2190.5,0.9206]
[1625486397743,4.35717,2192.7,2190.9,16.452116]
[1625486397944,4.35717,2192.7,2190.6,16.593257]
[1625486398059,4.35717,2192.7,2190.5,0.9206]
[1625486398361,4.35717,2192.7,2190.6,16.606527]
[1625486398746,2.20527,2191.7,2191.6,2.20527]
[1625486399347,1.0,2193.6,2191.6,2.20527]
[1625486399447,4.759,2193.7,2191.6,5.66447]
[1625486399546,9.759,2193.7,2191.6,22.185197]
[1625486399848,4.759,2193.7,2191.6,22.185197]
[1625486400702,5.0,2193.6,2191.6,22.185197]
[1625486400801,2.20527,2191.8,2191.6,22.185197]
[1625486401204,2.20527,2191.8,2191.6,3.4592]
[1625486401302,5.21337,2191.8,2190.7,1.33706088]
[1625486401501,5.21337,2191.8,2189.9,1.33759944]
[1625486401601,10.21337,2191.8,2189.9,1.33759944]
[1625486401699,5.21337,2191.8,2189.9,1.33759944]
[1625486402001,5.21337,2191.8,2189.4,3.47775853]
[1625486402002,5.21337,2191.8,2189.6,1.33789196]
[1625486402201,5.21337,2191.8,2190.0,16.576973]
[1625486402500,5.21337,2191.8,2189.9,16.671207]
[1625486402604,5.21337,2191.8,2189.7,16.708993]
[1625486402702,5.0,2191.7,2189.4,1.3392075]
[1625486402801,2.20527,2189.7,2189.6,2.20527]
[1625486402901,5.01467,2189.7,2189.4,1.3392075]
[1625486403202,5.01467,2189.7,2189.2,1.33820854]
[1625486403302,5.01467,2189.7,2189.5,16.522402]
[1625486403503,5.01467,2189.7,2189.5,10.590202]
[1625486403604,5.01467,2189.7,2189.2,1.33820854]
[1625486403807,5.01467,2189.7,2188.3,1.3385665]
[1625486404403,5.01467,2189.7,2188.4,16.545277]
[1625486404604,10.01467,2189.7,2188.4,16.545277]
[1625486404705,10.01467,2189.7,2188.0,1.33878199]
[1625486404807,4.41054,2188.1,2188.0,1.33878199]
[1625486405008,6.58204,2188.1,2187.6,2.20527]
[1625486405106,6.58204,2188.1,2187.5,1.33925012]
[1625486405408,6.58204,2188.1,2187.4,1.47310029]
[1625486405509,11.58204,2188.1,2186.2,1.87101097]
[1625486405809,11.58204,2188.1,2185.6,2.67305853]
[1625486406210,11.58204,2188.1,2185.7,0.13545409]
[1625486406415,12.49304,2188.1,2185.7,0.13545409]
[1625486406612,12.49304,2188.1,2185.0,2.67403329]
[1625486406810,4.41054,2185.1,2185.0,2.67403329]
[1625486406916,4.41054,2185.1,2184.2,2.6754398]
[1625486407486,4.41054,2185.1,2183.5,5.35087959]
[1625486407487,4.41054,2185.1,2182.6,2.6616999]
[1625486407660,5.0,2185.0,2184.3,16.729256]
[1625486407761,4.41054,2185.1,2184.3,16.729256]
[1625486407976,4.41054,2185.1,2184.1,16.624291]
[1625486408072,4.41054,2185.1,2183.5,16.736653]
[1625486408172,4.41054,2185.1,2181.4,14.9657]
[1625486408173,4.41054,2185.1,2182.2,2.66219028]
[1625486408573,4.41054,2185.1,2182.1,2.6614254]
[1625486408675,4.41054,2185.1,2182.3,16.481769]
[1625486408874,2.20527,2184.1,2184.0,2.20527]
[1625486409074,3.2455,2186.1,2184.0,2.20527]
[1625486409177,0.9214,2187.2,2184.0,2.20527]
[1625486409275,14.6374,2187.4,2184.0,2.20527]
[1625486409878,14.6374,2187.4,2184.1,16.741462]
[1625486410828,2.20527,2186.9,2186.6,2.20527]
[1625486410935,14.6374,2187.4,2186.6,5.31027]
[1625486411731,0.9257,2189.2,2186.6,5.31027]
[1625486411832,0.8996,2189.7,2186.6,5.31027]
[1625486412432,5.0,2190.8,2186.6,5.31027]
[1625486412531,0.923,2190.2,2186.6,5.31027]
[1625486412631,0.19277671,2190.7,2186.6,5.31027]
[1625486412830,0.19277671,2190.7,2187.0,2.20527]
[1625486412831,2.20527,2187.1,2187.0,2.20527]
[1625486413733,2.8132,2190.1,2187.0,2.20527]
[1625486413838,5.0,2190.5,2187.0,4.91497]
[1625486413937,15.4135,2191.2,2187.0,4.91497]
[1625486414035,0.19241519,2190.4,2187.0,4.91497]
[1625486414234,0.19259989,2190.8,2187.0,4.91497]
[1625486414345,0.19259989,2190.8,2187.1,16.707429]
[1625486414693,14.5084,2191.2,2187.1,16.707429]
[1625486414900,2.20527,2189.7,2189.6,2.20527]
[1625486415004,2.20527,2189.7,2189.6,5.60307]
[1625486415236,2.20527,2189.7,2189.6,3.3978]
[1625486415598,2.20527,2189.7,2189.6,2.31450954]
[1625486415786,14.5084,2191.2,2189.6,2.31450954]
[1625486416089,0.919,2192.5,2189.6,2.31450954]
[1625486416189,14.2244,2192.9,2189.6,2.31450954]
[1625486416287,0.19300673,2192.4,2189.6,2.31450954]
[1625486416486,0.19339641,2192.7,2189.6,2.31450954]
[1625486416787,0.19388457,2192.8,2189.6,2.31450954]
[1625486416887,2.20527,2191.9,2191.8,2.20527]
[1625486417086,2.20527,2191.9,2191.8,5.72377]
[1625486417188,2.20527,2191.9,2191.8,3.01739125]
[1625486417531,4.759,2193.5,2191.8,3.01739125]
[1625486417848,0.8988,2194.5,2191.8,3.01739125]
[1625486417950,0.19520141,2194.2,2191.8,3.01739125]
[1625486418459,0.19520141,2194.2,2189.9,1.0]
[1625486418560,5.19520141,2194.2,2189.9,1.0]
[1625486418659,0.19534189,2194.1,2189.9,1.0]
[1625486418762,0.19534189,2194.1,2189.9,0.9067]
[1625486418861,2.20527,2191.8,2191.7,2.20527]
[1625486419061,2.20527,2191.8,2190.0,16.438999]
[1625486419363,2.20527,2191.8,2189.6,2.31450954]
[1625486419763,7.20527,2191.8,2189.6,2.31450954]
[1625486419867,9.87047,2191.8,2185.6,2.63759677]
[1625486420266,10.87047,2191.8,2185.0,2.63855766]
[1625486420367,10.87047,2191.8,2187.2,1.0]
[1625486420465,10.87047,2191.8,2187.4,16.56533]
[1625486420569,9.87047,2191.8,2187.4,16.56533]
[1625486420725,4.87047,2191.8,2187.5,5.0]
[1625486420819,2.20527,2191.8,2187.5,7.9546]
[1625486420916,5.0,2192.6,2190.2,2.20527]
[1625486421618,0.19566252,2192.5,2190.2,2.20527]
[1625486422017,3.74126252,2192.5,2190.2,2.20527]
[1625486422117,5.0,2192.4,2190.2,2.20527]
[1625486422220,0.19575981,2192.3,2190.0,2.20527]
[1625486422317,0.19575981,2192.3,2188.0,1.0]
[1625486422942,2.20527,2190.1,2190.0,2.20527]
[1625486423035,2.20527,2190.1,2190.0,5.23737]
[1625486423537,2.20527,2190.1,2190.0,3.0321]
[1625486424204,2.20527,2190.1,2187.9,15.8249]
[1625486424292,2.20527,2190.1,2187.5,2.9546]
[1625486424389,7.20527,2190.1,2185.8,1.0]
[1625486424588,7.20527,2190.1,2186.2,5.0]
[1625486424691,7.20527,2190.1,2186.6,0.9074]
[1625486424838,7.20527,2190.1,2187.1,16.706611]
[1625486424938,2.20527,2188.0,2187.9,2.20527]
[1625486425338,2.20527,2188.0,2187.6,2.20527]
[1625486425640,2.20527,2188.0,2184.1,1.0]
[1625486425742,2.20527,2188.0,2185.1,5.0]
[1625486426391,2.20527,2188.0,2185.2,16.563605]
[1625486426591,2.20527,2188.0,2185.3,5.0]
[1625486426798,1.0,2189.4,2185.3,5.928]
[1625486426893,2.20527,2188.8,2188.6,2.20527]
[1625486427042,2.20527,2188.8,2188.6,4.45317]
[1625486427341,2.20527,2188.8,2188.6,2.2479]
[1625486427843,1.0,2191.6,2188.6,2.2479]
[1625486427945,0.9087,2191.7,2188.6,2.2479]
[1625486428464,0.1953909,2190.7,2188.6,2.2479]
[1625486428546,5.1953909,2190.7,2188.4,2.20527]
[1625486428746,5.1953909,2190.7,2186.1,0.9242]
[1625486428871,0.1951623,2190.6,2186.0,1.0]
[1625486428947,2.20527,2187.6,2186.3,2.6809]
[1625486429051,2.20527,2187.6,2184.2,0.9253]
[1625486429148,2.20527,2187.6,2183.7,14.921]
[1625486429247,2.20527,2187.6,2183.4,5.0]
[1625486429460,2.20527,2187.6,2183.0,2.63655555]
[1625486429581,2.20527,2187.6,2183.4,0.9116]
[1625486429668,7.20527,2187.6,2182.7,15.2436]
[1625486429864,7.20527,2187.6,2183.5,16.645156]
[1625486430175,7.20527,2187.6,2182.9,16.694542]
[1625486430267,7.20527,2187.6,2182.8,16.575037]
[1625486430364,1.15,2187.1,2181.6,2.63817692]
[1625486430466,3.8491,2187.1,2181.6,2.63817692]
[1625486430565,5.0,2187.0,2181.6,2.63817692]
[1625486430665,21.576459,2187.0,2181.6,2.63817692]
[1625486430767,21.576459,2187.0,2181.7,16.636396]
[1625486430971,2.20527,2183.7,2183.6,2.20527]
[1625486431264,3.3122,2185.8,2183.6,2.20527]
[1625486432368,1.0,2187.9,2183.7,16.533285]
[1625486432468,1.1,2189.2,2183.7,16.533285]
[1625486432568,1.1,2189.2,2183.7,18.877985]
[1625486432918,5.0,2188.5,2183.7,18.877985]
[1625486433018,2.20527,2185.5,2185.4,2.20527]
[1625486433122,2.20527,2185.5,2185.4,5.35367]
[1625486434218,5.0,2188.3,2185.4,5.35367]
[1625486434418,0.9266,2188.5,2185.4,5.35367]
[1625486434521,19.7874,2188.4,2185.4,5.35367]
[1625486434920,14.7874,2188.4,2185.4,5.35367]
[1625486435021,2.20527,2187.3,2187.2,2.20527]
[1625486435223,2.20527,2187.3,2187.2,4.83427]
[1625486436223,14.7874,2188.4,2187.2,4.83427]
[1625486436625,5.0,2189.1,2187.2,4.83427]
[1625486437025,2.20527,2188.0,2187.9,2.20527]
[1625486437128,2.20527,2188.0,2187.9,5.16177]
[1625486437276,2.20527,2188.0,2187.9,2.9565]